Cogmind - Beta 13 @@@ ROGUE MODE // 2024.04.12 @ 21:29:15 Player: RD-BKR Result: Self-destructed Performance ------------- Evolutions (2) 1000 Regions Visited (5) 1000 Robots Destroyed (30) 150 Value Destroyed (791) 791 Prototype IDs (25) 500 Alien Tech Used (0) 0 Bonus (346) 346 TOTAL SCORE: 3787 Bonus ------- Follower Combat Kills 208 Aligned with FarCom 300 Friendly Fire -162 Cogmind --------- Core Integrity 459/550 Matter 300/300 Energy 100/100 System Corruption 0% Temperature Cool (0) Movement Treading (240) Ox1 Location -8/Materials Parts ------- > --- POWER (1) -------- (None) > --- PROPULSION (4) --- Light Treads > --- UTILITY (4) ------ Large Storage Unit Structural Scanner Modified TNC Hacking Suite > --- WEAPON (2) ------- Assault Rifle Heavy Assault Rifle > --- INVENTORY (15) --- Ion Engine Light Ion Engine Compact Wheel VTOL Module Surge Thruster Medium Storage Unit Large Matter Pod (150) ECM Suite Thief Drone Bay (3/3) Spread Laser Spread Laser Grenade Launcher Rocket Launcher Datajack Makeshift Axe Peak State ------------ > --- POWER ------------ Light Angular Momentum Engine > --- PROPULSION ------- Light Treads Light Treads Light Treads > --- UTILITY ---------- Large Storage Unit Modified TNC Hacking Suite Thief Drone Bay > --- WEAPON ----------- Light Assault Rifle Light Assault Rifle > --- INVENTORY -------- Ion Engine Light Ion Engine Compact Wheel VTOL Module Medium Storage Unit Large Matter Pod ECM Suite Assault Rifle Grenade Launcher Rocket Launcher Datajack Makeshift Axe [Rating: 28] Favorites ----------- Power Light Angular Momentum Engine Engine Light Angular Momentum Engine Power Core Light Nuclear Core Propulsion Light Treads Treads Light Treads Leg Aluminum Leg Wheel Wheel Flight Unit Improved VTOL Module Utility Large Storage Unit Device Structural Scanner Storage Large Storage Unit Processor Modified TNC Hackware Hacking Suite Weapon Light Assault Rifle Energy Gun Spread Laser Ballistic Gun Light Assault Rifle Launcher Rocket Launcher Build | -11 -10 -10 -10 -9 -8 ------- Run | Yrd Mat Min Exi Min Mat Slots Evolved 4 | . . . . . 4 Power . | . . . . . . Propulsion 2 | . . . . . 2 Utility 2 | . . . . . 2 Weapon . | . . . . . . Parts Attached 35 | 5 4 7 3 5 11 Power 3 | 1 . 1 . . 1 Engine 2 | 1 . 1 . . . Core 1 | . . . . . 1 Reactor . | . . . . . . Propulsion 10 | 3 1 2 . 2 2 Treads 7 | 3 1 . . 2 1 Leg . | . . . . . . Wheel 2 | . . 2 . . . Hover . | . . . . . . Flight 1 | . . . . . 1 Utility 5 | . 1 . 1 . 3 Device 2 | . . . . . 2 Storage 1 | . 1 . . . . Processor 1 | . . . 1 . . Hackware 1 | . . . . . 1 Protection . | . . . . . . Artifact . | . . . . . . Weapon 17 | 1 2 4 2 3 5 Energy Gun 2 | . . . . . 2 Energy Cannon . | . . . . . . Ballistic Gun 10 | 1 1 2 2 2 2 Ballistic Cannon . | . . . . . . Launcher 5 | . 1 2 . 1 1 Special Weapon . | . . . . . . Impact Weapon . | . . . . . . Slashing Weapon . | . . . . . . Piercing Weapon . | . . . . . . Special Melee Weapon . | . . . . . . Unidentified Prototypes 2 | . . . . . 2 Parts Lost 5 | . . 1 . . 4 Power 2 | . . . . . 2 Propulsion 3 | . . 1 . . 2 Utility . | . . . . . . Weapon . | . . . . . . Highest Loss Streak 2 | . . 1 . . 2 To Critical Strikes . | . . . . . . Average Slot Usage (%) 82 | . 85 84 71 99 66 Engine 11 | . 14 14 14 14 2 Treads 19 | . 28 24 . 10 15 Wheel 5 | . . 3 28 16 . Storage 12 | . 14 14 14 14 9 Processor 4 | . . . 7 14 9 Hackware 2 | . . . . . 9 Energy Gun 1 | . . . . . 5 Ballistic Gun 20 | . 26 26 7 20 9 Launcher 2 | . 1 1 . 7 3 Naked Turns . | . . . . . . Heaviest Build 36 | 13 33 34 32 34 36 Greatest Support 60 | 40 40 40 20 40 60 Greatest Overweight (x) 1 | . . 1 1 1 1 Average Overweight (x) . | . . . 1 . . Largest Inventory Capacity 15 | 8 15 15 15 15 15 Average Capacity 14 | 8 14 15 15 15 15 Most Carried 15 | 6 15 15 15 15 15 Average Carried 13 | 6 10 14 14 14 14 Final Capacity 15 | 8 15 15 15 15 15 Final Carried 15 | 6 15 15 14 15 15 Class Distribution -------------------- 91% | Mutant 8% | Scavenger-Mutant Dominant Class ---------------- Mutant | -10/Materials Mutant | -10/Mines Mutant | -10/Exiles Mutant | -9/Mines Mutant | -8/Materials Resources | -11 -10 -10 -10 -9 -8 ----------- Run | Yrd Mat Min Exi Min Mat Matter Collected 1223 | 238 346 287 30 56 266 Remotely . | . . . . . . Salvage Created 876 | . 370 203 . . 303 Parts 59 | . 26 17 . . 16 Haulers Intercepted . | . . . . . . Recyclers Shooed . | . . . . . . Parts Field Recycled . | . . . . . . Retrieved Matter . | . . . . . . Parts Self-Destructed . | . . . . . . Prevented . | . . . . . . Kills | -11 -10 -10 -10 -9 -8 ------- Run | Yrd Mat Min Exi Min Mat Combat Hostiles Destroyed 28 | . 11 10 . . 7 Guns 18 | . 9 8 . . 1 AOE 10 | . 2 2 . . 6 Classes Destroyed 8 | . 5 1 . . 2 Worker 2 | . 1 1 . . . Builder 1 | . . . . . 1 Mechanic 1 | . 1 . . . . Operator 2 | . 2 . . . . Swarmer 9 | . 6 3 . . . Grunt 12 | . 5 2 . . 5 Hunter 2 | . . . . . 2 Assembled 5 | . . 5 . . . Thug 1 | . . . . . 1 Best Kill Streak 4 | . 4 3 . . 4 Combat Bots Only 3 | . 3 3 . . 3 Max Kills in Single Turn 2 | . 1 2 . . 2 Gunslinging . | . . . . . . Exploded 2 | . 1 2 . . 2 Melee . | . . . . . . Uniques/NPCs Destroyed . | . . . . . . Combat | -11 -10 -10 -10 -9 -8 -------- Run | Yrd Mat Min Exi Min Mat Hostile Shots Fired 115 | . 36 14 . 3 62 Missed 38 | . 11 3 . 1 23 Damage Taken 1166 | . 270 232 . 41 623 Core 171 | . 59 16 . 5 91 Absorbed by Shields . | . . . . . . Core Remaining (%) 84 | 100 . . . 68 . Volleys Fired 86 | . 43 17 . . 26 Largest 2 | . 2 2 . . 2 Hottest 130 | . 40 40 . . 130 Shots Fired 160 | . 81 29 . 1 49 Gun 144 | . 74 28 . . 42 Cannon . | . . . . . . Launcher 16 | . 7 1 . 1 7 Special . | . . . . . . Kinetic 123 | . 74 28 . . 21 Thermal 21 | . . . . . 21 Explosive 16 | . 7 1 . 1 7 Electromagnetic . | . . . . . . Robot Hit Streak 17 | . 11 17 . 9 17 Robot Miss Streak 8 | . 5 1 . . 8 Penetration Max . | . . . . . . Secondary Targets . | . . . . . . Shots Hit Robots 109 | . 49 20 . 1 39 Core Hits 84 | . 22 17 . . 45 Critical Kills 1 | . . 1 . . . Critical Parts Destroyed . | . . . . . . Critical Strikes 1 | . . 1 . . . Destroy 1 | . . 1 . . . Melee Attacks . | . . . . . . Impact . | . . . . . . Slashing . | . . . . . . Piercing . | . . . . . . Sneak Attacks . | . . . . . . Combat Hostiles . | . . . . . . Follow-up Attacks . | . . . . . . Damage Inflicted 1910 | . 579 304 . 46 981 Guns 1191 | . 512 235 . . 444 Cannons . | . . . . . . Explosions 689 | . 55 69 . 39 526 Melee . | . . . . . . Ramming 30 | . 12 . . 7 11 Kinetic 925 | . 512 235 . . 178 Thermal 266 | . . . . . 266 Explosive 689 | . 55 69 . 39 526 Electromagnetic . | . . . . . . Impact . | . . . . . . Slashing . | . . . . . . Piercing . | . . . . . . Highest Corruption 3 | . 3 3 3 3 . Average Corruption 2 | . 2 3 3 3 . Corruption Purged . | . . . . . . Corruption Blocked . | . . . . . . Effects 53 | . 16 20 5 12 . Message Errors 21 | . 6 10 2 3 . Matter Fused 12 | . 5 5 . 2 . Heat Flow Errors 3 | . . 2 . 1 . Energy Discharges 8 | . 3 1 2 2 . Data Loss (minor) 3 | . 1 . . 2 . Data Loss (major) 3 | . . 1 1 1 . Misfires 3 | . 1 1 . 1 . Overload Shots . | . . . . . . Overflow Damage 9 | . . . . . 9 Projectiles . | . . . . . . Explosions 9 | . . . . . 9 Melee . | . . . . . . Knockbacks . | . . . . . . Impact . | . . . . . . Kinetic . | . . . . . . Secondary . | . . . . . . Self-Inflicted Damage 132 | . 34 30 . 18 50 Shots 5 | . 1 1 . 1 2 Rammed 6 | . 2 . . 1 3 Targets Rammed 6 | . 2 . . 1 3 Kicked . | . . . . . . Crushed . | . . . . . . Highest Temperature 351 | . 12 165 . 106 351 Average Temperature 81 | . 7 33 . 61 117 Received Heat Transfer 246 | . 48 9 . 9 180 Effects 1 | . . . . . 1 Damage (minor) 1 | . . . . . 1 Siege Activations . | . . . . . . Robots Corrupted . | . . . . . . Combat Hostiles . | . . . . . . Parts Fried . | . . . . . . Impact Corruptions . | . . . . . . Robots Melted . | . . . . . . Combat Hostiles . | . . . . . . Parts Melted . | . . . . . . Heat Transferred 345 | . . . . . 345 Parts Sabotaged . | . . . . . . Parts Stolen . | . . . . . . Parts Stripped . | . . . . . . Power Chain Reactions . | . . . . . . Alert | -11 -10 -10 -10 -9 -8 ------- Run | Yrd Mat Min Exi Min Mat Peak Influence 250 | . 165 127 . 200 250 Initial 44 | . . . . . 44 Average 70 | . 80 35 . 76 92 Maximum Alert Level 1 | . . . . 1 1 Low Security (%) 94 | 100 100 100 . 90 85 Level 1 5 | . . . . 9 15 Level 2 . | . . . . . . Level 3 . | . . . . . . Level 4 . | . . . . . . Level 5 . | . . . . . . High Security . | . . . . . . Max Security . | . . . . . . Squads Dispatched 8 | . 4 . . 1 3 Investigation 2 | . 2 . . . . Extermination . | . . . . . . Reinforcement 5 | . 2 . . . 3 Assault 1 | . . . . 1 . Garrison . | . . . . . . Intercept . | . . . . . . Searches Triggered . | . . . . . . Construction Impeded 1 | . . . . . 1 Haulers Reinforced . | . . . . . . Active Scanning Responses . | . . . . . . Cargo Convoy Interrupts . | . . . . . . Stealth | -11 -10 -10 -10 -9 -8 --------- Run | Yrd Mat Min Exi Min Mat Distress Signals 2 | . 2 . . . . Communications Jammed . | . . . . . . Distress Signals . | . . . . . . Times Spotted 58 | . 30 11 . 7 10 Peak Tracking Total 6 | . 6 3 . 4 3 Tactical Retreats 2 | . . . . 2 . Traps | -11 -10 -10 -10 -9 -8 ------- Run | Yrd Mat Min Exi Min Mat Traps Triggered 5 | . 5 . . . . Indirectly . | . . . . . . Trap Hack Attempts . | . . . . . . Triggered . | . . . . . . Disarmed . | . . . . . . Reprogrammed . | . . . . . . Reused . | . . . . . . Traps Extracted . | . . . . . . Installed . | . . . . . . Triggered . | . . . . . . Machines | -11 -10 -10 -10 -9 -8 ---------- Run | Yrd Mat Min Exi Min Mat Machines Disabled 4 | . 1 . . 1 2 Max in Single Turn 1 | . 1 . . 1 1 Garrison Access 1 | . . . . . 1 Machines Repaired . | . . . . . . Machines Dismantled . | . . . . . . Machines Sabotaged . | . . . . . . Overloaded Fab Kills . | . . . . . . Hacking | -11 -10 -10 -10 -9 -8 --------- Run | Yrd Mat Min Exi Min Mat Machines Accessed 10 | . 5 . 1 1 3 Terminals 7 | . 5 . . . 2 Fabricators . | . . . . . . Repair Stations . | . . . . . . Recycling Units . | . . . . . . Scanalyzers . | . . . . . . Garrison Access 1 | . . . . . 1 Total Hacks 24 | . 13 . 1 1 9 Successful 12 | . 7 . 1 1 3 Failed 12 | . 6 . . . 6 Catastrophic 1 | . 1 . . . . Database Lockouts . | . . . . . . Manual 16 | . 8 . 1 . 7 Terminals 21 | . 13 . . . 8 Fabricators . | . . . . . . Repair Stations . | . . . . . . Recycling Units . | . . . . . . Scanalyzers . | . . . . . . Garrison Access 1 | . . . . . 1 Terminal Hacks 8 | . 4 . 1 1 2 Robot Analysis 2 | . 2 . . . . Open Door 1 | . . . . 1 . Terminal Index 1 | . . . . . 1 Locate Traps 1 | . . . . . 1 Hauler Manifests 1 | . 1 . . . . Zone Layout 1 | . 1 . . . . Derelict Proto ID Bank 1 | . . . 1 . . Fabricator Hacks . | . . . . . . Repair Station Hacks . | . . . . . . Recycling Unit Hacks . | . . . . . . Scanalyzer . | . . . . . . Garrison Access Hacks 1 | . . . . . 1 Seal Access 1 | . . . . . 1 Unauthorized Hacks 3 | . 3 . . . . Terminals 3 | . 3 . . . . Botnet 2 | . 2 . . . . Operators 1 | . 1 . . . . Fabricators . | . . . . . . Repair Stations . | . . . . . . Recycling Units . | . . . . . . Scanalyzers . | . . . . . . Garrison Access . | . . . . . . Data Cores Recovered . | . . . . . . Used . | . . . . . . Hacking Detections 7 | . 5 . . . 2 Full Trace Events . | . . . . . . Feedback Events . | . . . . . . Feedback Blocked . | . . . . . . Robot Schematics Acquired . | . . . . . . Robots Built . | . . . . . . Authchips . | . . . . . . Time . | . . . . . . Total Robot Build Rating . | . . . . . . Part Schematics Acquired . | . . . . . . Parts Built . | . . . . . . Authchips . | . . . . . . Time . | . . . . . . Total Part Build Rating . | . . . . . . Parts Repaired . | . . . . . . Time . | . . . . . . Parts Recycled . | . . . . . . Recycled Matter . | . . . . . . Retrieved Matter . | . . . . . . Retrieved Components . | . . . . . . Parts Scanalyzed . | . . . . . . Part Schematics Acquired . | . . . . . . Parts Damaged . | . . . . . . Bothacking | -11 -10 -10 -10 -9 -8 ------------ Run | Yrd Mat Min Exi Min Mat Used RIF Installer . | . . . . . . Robots Hacked . | . . . . . . Non-combat . | . . . . . . Combat . | . . . . . . Robot Hacks Applied . | . . . . . . Relay Couplers Released . | . . . . . . Fabnet Peak Effective % . | . . . . . . Robots Rewired . | . . . . . . Allies Hacked . | . . . . . . Hacks Repelled . | . . . . . . Allies | -11 -10 -10 -10 -9 -8 -------- Run | Yrd Mat Min Exi Min Mat Total Allies 3 | . . . . 3 . Largest Group 3 | . . . . 3 1 Highest-Rated Group 76 | . . . . 76 31 Highest-Rated Ally 31 | . . . . 31 31 Total Orders 1 | . . . . . 1 RETURN 1 | . . . . . 1 Ally Attacks 46 | . . . . 44 2 Total Damage 537 | . . . . 517 20 Kills 11 | . . . . 11 . Allies Corrupted . | . . . . . . Allies Melted . | . . . . . . Intel | -11 -10 -10 -10 -9 -8 ------- Run | Yrd Mat Min Exi Min Mat Robot Analysis Total 2 | . 2 . . . . Derelict Logs Recovered 2 | . . 1 . 1 . Drone Launches 1 | . . . . . 1 Drone Recoveries 1 | . . . . . 1 Exploration | -11 -10 -10 -10 -9 -8 ------------- Run | Yrd Mat Min Exi Min Mat Turns Passed 4100 | 14 1218 1005 221 702 940 Spaces Moved 2335 | 5 636 567 226 564 337 Core . | . . . . . . Treads 1597 | 3 636 454 . 167 337 Legs 2 | 2 . . . . . Wheels 736 | . . 113 226 397 . Hover . | . . . . . . Flight . | . . . . . . Fastest Speed 95 | 120 160 95 95 95 160 Average Speed 144 | 144 160 147 95 114 193 Slowest Speed 240 | 160 160 240 95 240 240 Overloaded Moves . | . . . . . . Propulsion Burnouts . | . . . . . . Robots Hopped . | . . . . . . Cave-ins Triggered . | . . . . . . Exploration Rate (%) 60 | 2 96 79 60 98 25 Regions Visited 5 Branch Regions 3 Pre-discovered Areas . | . . . . . . Known Exits Taken . | . . . . . . Unknown Exits Taken 5 | 1 1 1 1 1 . Scrap Searched 5 | . . 1 . 4 . Spaces Dug 52 | . 28 7 . . 17 Terrain Destroyed 125 | . 51 7 . 8 59 Melee . | . . . . . . Projectile . | . . . . . . AOE 125 | . 51 7 . 8 59 Terrain Rammed . | . . . . . . Walls Destroyed . | . . . . . . Machines Disabled . | . . . . . . Actions | -11 -10 -10 -10 -9 -8 --------- Run | Yrd Mat Min Exi Min Mat Total 2904 | 9 762 708 233 620 572 Wait 412 | . 67 113 . 44 188 Move 2330 | 4 635 566 225 563 337 Hop . | . . . . . . Pick Up 17 | . 9 2 1 3 2 Fast Attach 11 | . 2 1 1 2 5 Attach 8 | . 1 1 2 . 4 Detach 5 | . 1 . 2 . 2 Swap 16 | 5 1 5 . 3 2 Drop 13 | . 1 3 2 4 3 Fire 86 | . 43 17 . . 26 Melee . | . . . . . . Ram 1 | . . . . 1 . Kick . | . . . . . . Crush 5 | . 2 . . . 3 Escape Stasis . | . . . . . . Rewire . | . . . . . . Trap . | . . . . . . Miscellaneous . | . . . . . . Route ------- -11/Scrapyard -10/Materials (discovered 5 exits: [*Mat x3] / [*Min x2]) -10/Mines (discovered 3 exits: [*Mat x2] / *Exi) -10/Exiles -9/Mines (discovered 2 exits: *Mat x2) -8/Materials History --------- Turn | Location | Event 1 | -11/Scrapyard | Discovered new exit (range 2) 15 | -11/Scrapyard | Entered Materials 210 | -10/Materials | Discovered new exit (range 16) 304 | -10/Materials | Build established: Mutant 399 | -10/Materials | Discovered new exit (range 4) 451 | -10/Materials | Discovered new exit (range 9) 599 | -10/Materials | Discovered new exit (range 14) 1118 | -10/Materials | Discovered new exit (range 12) 1233 | -10/Materials | Entered Mines 1406 | -10/Mines | Joined a pair of Derelicts in attacking an 0b10 outpost 1515 | -10/Mines | Assembled infested the area 1803 | -10/Mines | Discovered new exit (range 7) 1998 | -10/Mines | Received a Rocket Launcher from a helpful Derelict 2033 | -10/Mines | Discovered new exit (range 7) 2057 | -10/Mines | Deemed a non-threat by the Exiles lab entrance 2057 | -10/Mines | Discovered new exit (range 5) 2238 | -10/Mines | Entered Exiles 2261 | -10/Exiles | Met 8R-AWN 2280 | -10/Exiles | Met EX-HEX 2308 | -10/Exiles | Met EX-BIN 2318 | -10/Exiles | Aligned with FarCom system 2319 | -10/Exiles | Given EX-Vault access code 2341 | -10/Exiles | Opened EX-Vault 2349 | -10/Exiles | Found Modified TNC 2370 | -10/Exiles | Warned to stay clear of 0b10 Research branches 2398 | -10/Exiles | Met EX-DEC 2447 | -10/Exiles | Discovered new exit (range 14) 2459 | -10/Exiles | Left Exiles lab with Modified TNC 2459 | -10/Exiles | Entered Mines 2460 | -9/Mines | Met a Derelict testing a Signal Generator 2494 | -9/Mines | Learned Materials trap positions 2613 | -9/Mines | Found the Drone Emporium 2619 | -9/Mines | Found Prototype Device 2767 | -9/Mines | Discovered new exit (range 10) 2928 | -9/Mines | A weapon hastily lodged in a ceiling crevice suddenly fell to the ground 3060 | -9/Mines | Discovered new exit (range 5) 3161 | -9/Mines | Entered Materials 3161 | -8/Materials | Accompanied by 1 ally 3161 | -8/Materials | Evolved 4 slots: Propulsion x2, Utility x2 3162 | -8/Materials | Loaded intel: 33 trap records 3171 | -8/Materials | Identified Thief Drone Bay 4101 | -8/Materials | Self-destructed Last Messages --------------- 03693_ K-01 Serf collects debris. 03693_ Slug penetrates Wall. 03695_ H-55 Commando destroyed. 03695_ K-01 Serf collects debris. 03707_ Acquired Prototype Flight Unit. 03707_ Identified Imp. VTOL Module. 03707_ Hvy. Assault Rifle broken. 03707_ Faulty integration triggers power surge. 03709_ Dropped Faulty Imp. VTOL Module. 03721_ R-06 Scavenger collects Faulty Imp. VTOL Module. 03767_ Acquired Structural Scanner. 03800_ O-16 Technician: "IFF HANDSHAKE FAILED. SECURING TERMINAL." 03808_ ALERT: Hostiles spotted, dispatching reinforcements to Terminal M001. 03852_ Acquired Surge Thruster. 03858_ K-01 Serf collects debris. 03877_ Connecting with Scanalyzer... 03987_ Acquired 153 matter. Map ----- +----------------------------------------------------+ | ?????????????????????????????????????????? | | ?????????????????????????????????????????? | | ?????????????????????????????????????????? | | ?????????????????????????????????????????? | | ?????????????????????????????????????????? | | ?????????????????????????????????????????? | | ?????????????????????????????????????????? | | ?????????????????????????????????????????? | | ?????????????????????????????????????????? | | ?????????????????????????????????????????? | | ?????????????????????????????????????????? | | ??????????????######?????????????????????? | | ??????????????######?????????????????????? | | ?????????????g ##?????????????????????? | | ??????????????g "#?????????????????????? | | ?? T???????g?? T??????????????????????? | | ?? ?????????"" "############??????????? | | ?# ? """"" #############??????????? | | ?# """"" ## ##??????????? | | ?+ ? ## ##??????????? | | ?# ? ##% !!! ##??????????? | | ?# """"" """"" ## !! ##??????????? | | # a""""" """"" ## !! ##??????????? | | ## """"" """"" ## ##??????????? | | ## ## ##??????????? | | ## ## @ ###?????????? | | ## """"" """ ######+#######?????????? | | ## """"" """ ###########? | | ## """"" "" % ^ ^ # #? | | ## "" # ! #? | | ^ ^^ G" # #? | | ! ^ "" # #? | | ^ """ ^ # #? | | #/######## ^ """^^ % # #? | | ###### ^ "" + #? | | #???## """ # #? | | ###### """ ###########? | | ###### ##??????? | | ! + ##??????? | | ! #########+######+#########+####??????? | | ##+######! # ### ##?????? | | ##!| #?## """ #| ] ### ##?????? | | # % #?## """ """ # !! ###""" ##?????? | | %%== #### """ """ # ]! ###""" ##?????? | | ![* # ## "S """ # ###""" ##?????? | | [] ### """ """ # ! + + ##?????? | | [] ## "" ##################?????? | | [] ## [ ##################?????? | | ##############?????????????????????? | | ###############?????????????????????? | +----------------------------------------------------+ Best States ------------- Heat Dissipation 31 Energy Generation 18 Energy Capacity 250 Matter Stores 300 Matter Capacity 300 Sight Range 16 Terrain Scan Density 10 Evasion (%) 41 Recoil Reduction 3 Offensive Hacking 10 Item Schematics ----------------- None Robot Schematics ------------------ None Fabricated ------------ Nothing Alien Tech Used ----------------- None Achievements -------------- Maybe Next Time I'll Detach My Launcher Challenges ------------ None Game ------ Seed SmallCouplerShield Manual? 0 Play Time 00:41:04 Cumulative 47.8 hours Start 2024.04.12 @ 18:55:33 End 2024.04.12 @ 21:29:15 Sessions 5 Manual Loads 0 Difficulty Rogue Special Mode None Game No. 82 Rogue 82 Adventurer 0 Explorer 0 Win Type - Total 0 Types 0/0/0/0/0/0/0/0/0 Lore% 24 Gallery% 27 Achievement% 27 Wizard Run 0 Options --------- Layout 1 ASCII 0 Keyboard 0 Movement Mouse Keybinds 0 Fullscreen 2 Font 24/Smallcaps Map View 50x35 Zoom Use 0% Tactical HUD 1 Map Filters NONE Filters NONE Steam 1 RUN: 2fb1c612-0323-4356-a36f-be4d748702e3